{"text_format":"1","workbook":"xlsx","n_sheets":10,"sheets":["A.  Title","B.  General Information","C.  Abstract","D.  Transition Timeline","E.  Timeline for Funds","F.  NTIA Interactions","G.  Excluded Information","H.  Factors","I.  Additional Information","Sheet1"],"not_rendered":{"charts":0,"images":0,"macros":1,"external_links":0,"defined_names":13,"comments":0,"pivot_tables":0},"unopened":[],"bounds":{"document_bytes":16777216,"sheet_cells":100000,"rows_first":2000,"rows_last":500,"rows_between":2000,"halvings":0,"cell_chars":16384,"cell_head_chars":4096},"cells_cut":0,"cells_raw":0,"read":"whole","date_system":"1900"}

{"sheet":"A.  Title","index":0,"n_rows":12,"n_cols":8,"rows_kept":12,"cut":false,"hidden":false,"merged":[[1,2,1,7],[5,5,5,8],[8,1,8,5],[8,7,8,9],[11,0,11,10]]}
[]
[null,null,"Department of Energy (DOE)\nBonneville Power Administration\nTransition Plan for the 1755-1780 MHz Band"]
[]
[]
[]
[]
[]
[]
[null,"Primary Point of Contact:  George Dudley\nOffice:   Office of the CIO\nTelephone Number:  202-586-6730\nE-mail: george.dudley@hq.doe.gov",null,null,null,null,null,"Alternate Point of Contact:  Pamela Main\nOffice:  Office of the CIO\nTelephone Number:  301-903-4261 \nE-mail:  Pamela.main@hq.doe.gov"]
[]
[]
["Certification regarding Classified and Sensitive Information:  \nI, [         Michael P. Miller       ______   ], certify that this transition plan, is cleared for release to the public and contains no classified or sensitive information.  A separate Annex containing a complete transition plan including all classified and sensitive data is provided under separate cover via authorized channels.  [As applicable:  A separate Annex containing a complete transition plan including all classified and sensitive data is provided under separate cover via authorized channels.]"]

{"sheet":"B.  General Information","index":1,"n_rows":17,"n_cols":22,"rows_kept":17,"cut":false,"hidden":false,"merged":[[12,2,12,5],[14,2,14,5],[12,0,15,0],[13,2,13,5],[15,2,15,5]]}
[1,"This Transition Plan includes pre-auction planning costs, as defined in Section O.2 of Annex O:   ",null,null,null,null,null,null,null,null,null,null,null,null,null,null,null,null,null,null,null,"Yes"]
[null,"a.       Total pre-auction planning costs:",{"$f":"SUM('E.  Timeline for Funds'!E2:E1000)","v":0},null,null,null,null,null,null,null,null,null,null,null,null,null,null,null,null,null,null,"No"]
[null,"b.      The subtotal amount, if any, of pre-auction planning costs requested for pre-auction transfer:",{"$f":"SUM('E.  Timeline for Funds'!F2:F1000)","v":0}]
[null,"c.       The subtotal amount, if any, of pre-auction planning costs incurred after June 28, 2010, but before February 22, 2012:",{"$f":"SUM('E.  Timeline for Funds'!G2:G1000)","v":0}]
[null,"d.      This organization attests that:"]
[null,"[1]    This transition plan provides for sharing and coordination of eligible frequencies with non-federal users, including reasonable accommodation for the use of eligible frequencies by non-federal users during the transition period.","Yes"]
[null,"[2]    This transition plan provides for non-federal users to be able to use eligible frequencies during the transition period in geographic areas where this organization does not use such frequencies.","Yes"]
[null,"[3]    During the transition period, this organization will make itself available for negotiation and discussion with non-federal users not later than 30 days after a written request.","No"]
[null,"[4]    During the transition period, this organization will make available to a non-federal user with appropriate security clearances any classified information regarding the relocation process, on a need-to-know basis.","Yes"]
[null,"[5]    (Only applicable if the amount in 1b above is greater than $0.00.)  Funds transferred before an auction likely allow for timely implementation of relocation or sharing, thereby increasing net expected auction proceeds by an amount not less than the time value of the amount of funds transferred.","Yes"]
[2,"There is additional information required to be included in the Transition Plan that is not included in this document because it is classified information, as defined in Section O.7 of Annex O.","No"]
[3,"There is additonal information required to be included in the Transition Plan that is not included in this document because it is sensitive information, as defined in Section O.7 of Annex O.","No"]
[4,"a.  Name of Responsible Officer: ","Steven  Golisch"]
[null,"b.  (Optional) Office:","Telecommunications Design Group"]
[null,"c.  (Optional) Telephone Number:  ","360-619-6561"]
[null,"d.  (Optional) E-mail: ","scgolisch@bpa.gov"]
[5,"Total Transition Plan Cost ($M):",{"$f":"SUM(6.8)","v":6.8}]

{"sheet":"C.  Abstract","index":2,"n_rows":8,"n_cols":18,"rows_kept":8,"cut":false,"hidden":false,"merged":[]}
["Serial Number","Center Freq./\nLower Band Limit (MHz)","Upper Band Limit (MHz)\n(if appl)","Emission Bandwidth (20 dB) (MHz)","Rx IF Bandwidth\n(3 dB)\n(MHz)","Bureau","System Use","System Name","Authorized Area of Operation","TX \nState","TX \nLatitude","TX Longitude","RX \nState","RX \nLatitude","RX Longitude","Sharing","Alternate Frequency Assignment","Transition Timeline (Months)"]
["DOE 786122",1765,"N/A",8,2,"BPA","Microwave","T","N/A","OR","453423N","1224727W","WA","453905N","1224339W","None","N/A",30]
["DOE 924929",1765,"N/A",10,2,"BPA","Microwave","3A","N/A","OR","454041N","1204410W","WA","454345N","1204224W","None","N/A",30]
["DOE 945250",1757.5,"N/A",0.8,2,"BPA","Microwave","4K","N/A","OR","434625N","1201654W","OR","434841N","1205229W","None","N/A",30]
["DOE 945254",1767.5,"N/A",0.8,2,"BPA","Microwave","4K","N/A","OR","433034N","1190725W","OR","433332N","1190909W","None","N/A",30]
["DOE 955040",1777.5,"N/A",0.8,2,"BPA","Microwave","13A","N/A","WA","461351N","1190234W","WA","461543N","1191722W","None","4 GHz",30]
["DOE 955303",1767.5,"N/A",1,2,"BPA","Microwave","3K","N/A","CA","412458N","1210632W","CA","413050N","1203813W","None","7-8 GHz",30]
["DOE 984990",1775,"N/A",1,2,"BPA","Microwave","3D","N/A","WA","471909N","1201423W","WA","470618N","1193144W","None","N/A",30]

{"sheet":"D.  Transition Timeline","index":3,"n_rows":2,"n_cols":7,"rows_kept":2,"cut":false,"hidden":false,"merged":[[0,4,0,6]]}
[null,null,null,null,"Timeline (Months after Auction)"]
[null,null,"Serial Number","Geographic Location (Service Area)","Begin Temporary Sharing","Begin Indefinite Sharing ","Vacate Assignment "]

{"sheet":"E.  Timeline for Funds","index":4,"n_rows":1000,"n_cols":15,"rows_kept":1000,"cut":false,"hidden":false,"merged":[]}
["System Name","System ID",null,"System \nID","Pre-Auction Costs ($M)","Pre-Auction Transfer Requested ($M)","Pre-Auction Costs Incurred between\n 6-28-2010 and 2-22-2012","Equipment-Related Costs ($M)","Deployment-Related Costs ($M)","Total Cost for System ($M)","Begin Expenditure of Funds","End Expenditure of Funds","Costs Associated with Expanded Capability","Description of Expanded Capability","Explanation/ Justification"]
["T","DOE-1",null,"Microwave",0,0,0,0.05,0.05,{"$f":"SUM(E2, H2:I2)","v":0.1},1,30,null,null,"BPA will temporarly relocate the existing frequency assignments from the 1755-1780 MHz band to the 1780-1850 MHz band."]
["3A","DOE-2",null,"Microwave",0,0,0,0.05,0.05,{"$f":"SUM(E3, H3:I3)","v":0.1},1,30,null,null,"BPA will temporarly relocate the existing frequency assignments from the 1755-1780 MHz band to the 1780-1850 MHz band."]
["4K-1","DOE-3",null,"Microwave",0,0,0,0.05,0.05,0.1,1,30,null,null,"BPA will temporarly relocate the existing frequency assignments from the 1755-1780 MHz band to the 1780-1850 MHz band."]
["4K-2","DOE-4",null,"Microwave",0,0,0,0.05,0.05,0.1,1,30,null,null,"BPA will temporarly relocate the existing frequency assignments from the 1755-1780 MHz band to the 1780-1850 MHz band."]
["13A","DOE-5",null,"Microwave",0,0,0,0.42,1.98,2.4,1,48,20000,"Expand channel capacity to 16 DS1","Expanded channel capacity to 16 each DS1 will provide sufficient capacity to meet existing telecommunication circuit needs including Teleprotection, SCADA, Telemetering, Site Security, Voice, IT and future Smart Grid applications to control and operate the power transmission grid per Western Electric Coordinating Council (WECC) and North America Electric Reliability Council -Critical Infastructure Protection (NERC-CIP) requirements."]
["3K","DOE-6",null,"Microwave",0,0,0,0.42,1.98,2.4,1,48,20000,"Expand channel capacity to 16 DS1","Expanded channel capacity to 16 each DS1 will provide sufficient capacity to meet existing telecommunication circuit needs including Teleprotection, SCADA, Telemetering, Site Security, Voice, IT and future Smart Grid applications to control and operate the power transmission grid per Western Electric Coordinating Council (WECC) and North America Electric Reliability Council -Critical Infastructure Protection (NERC-CIP) requirements."]
["3D","DOE-7",null,"Microwave",0,0,0,0,0,{"$f":"SUM(E8, H8:I8)","v":0},null,null,null,null,"BPA is funding the relocation of this microwave point-to-point path with a new digital microwave or fiber technology"]
["DOE HQ","DOE-8",null,"Microwave",0,0,0,0,1.6,1.6,null,null,null,null,"HQ Administration of 1755-1780 Relocation Program."]
[null,null,null,null,null,null,null,null,null,0]
[null,null,null,null,null,null,null,null,null,0]
[null,null,null,null,null,null,null,null,null,0]
[null,null,null,null,null,null,null,null,null,0]
[null,null,null,null,null,null,null,null,null,0]
[null,null,null,null,null,null,null,null,null,0]
[null,null,null,null,null,null,null,null,null,0]
[null,null,null,null,null,null,null,null,null,0]
[null,null,null,null,null,null,null,null,null,0]
[null,null,null,null,null,null,null,null,null,0]
[null,null,null,null,null,null,null,null,null,0]
[null,null,null,null,null,null,null,null,null,0]
[null,null,null,null,null,null,null,null,null,0]
[null,null,null,null,null,null,null,null,null,0]
[null,null,null,null,null,null,null,null,null,0]
[null,null,null,null,null,null,null,null,null,0]
[null,null,null,null,null,null,null,null,null,0]
[null,null,null,null,null,null,null,null,null,0]
[null,null,null,null,null,null,null,null,null,0]
[null,null,null,null,null,null,null,null,null,0]
[null,null,null,null,null,null,null,null,null,0]
[null,null,null,null,null,null,null,null,null,0]
[null,null,null,null,null,null,null,null,null,0]
[null,null,null,null,null,null,null,null,null,0]
[null,null,null,null,null,null,null,null,null,0]
[null,null,null,null,null,null,null,null,null,0]
[null,null,null,null,null,null,null,null,null,0]
[null,null,null,null,null,null,null,null,null,0]
[null,null,null,null,null,null,null,null,null,0]
[null,null,null,null,null,null,null,null,null,0]
[null,null,null,null,null,null,null,null,null,0]
[null,null,null,null,null,null,null,null,null,0]
[null,null,null,null,null,null,null,null,null,0]
[null,null,null,null,null,null,null,null,null,0]
[null,null,null,null,null,null,null,null,null,0]
[null,null,null,null,null,null,null,null,null,0]
[null,null,null,null,null,null,null,null,null,0]
[null,null,null,null,null,null,null,null,null,0]
[null,null,null,null,null,null,null,null,null,0]
[null,null,null,null,null,null,null,null,null,0]
[null,null,null,null,null,null,null,null,null,0]
[null,null,null,null,null,null,null,null,null,0]
[null,null,null,null,null,null,null,null,null,0]
[null,null,null,null,null,null,null,null,null,0]
[null,null,null,null,null,null,null,null,null,0]
[null,null,null,null,null,null,null,null,null,0]
[null,null,null,null,null,null,null,null,null,0]
[null,null,null,null,null,null,null,null,null,0]
[null,null,null,null,null,null,null,null,null,0]
[null,null,null,null,null,null,null,null,null,0]
[null,null,null,null,null,null,null,null,null,0]
[null,null,null,null,null,null,null,null,null,0]
[null,null,null,null,null,null,null,null,null,0]
[null,null,null,null,null,null,null,null,null,0]
[null,null,null,null,null,null,null,null,null,0]
[null,null,null,null,null,null,null,null,null,0]
[null,null,null,null,null,null,null,null,null,0]
[null,null,null,null,null,null,null,null,null,{"$f":"SUM(E67, H67:I67)","v":0}]
[null,null,null,null,null,null,null,null,null,0]
[null,null,null,null,null,null,null,null,null,0]
[null,null,null,null,null,null,null,null,null,0]
[null,null,null,null,null,null,null,null,null,0]
[null,null,null,null,null,null,null,null,null,0]
[null,null,null,null,null,null,null,null,null,0]
[null,null,null,null,null,null,null,null,null,0]
[null,null,null,null,null,null,null,null,null,0]
[null,null,null,null,null,null,null,null,null,0]
[null,null,null,null,null,null,null,null,null,0]
[null,null,null,null,null,null,null,null,null,0]
[null,null,null,null,null,null,null,null,null,0]
[null,null,null,null,null,null,null,null,null,0]
[null,null,null,null,null,null,null,null,null,0]
[null,null,null,null,null,null,null,null,null,0]
[null,null,null,null,null,null,null,null,null,0]
[null,null,null,null,null,null,null,null,null,0]
[null,null,null,null,null,null,null,null,null,0]
[null,null,null,null,null,null,null,null,null,0]
[null,null,null,null,null,null,null,null,null,0]
[null,null,null,null,null,null,null,null,null,0]
[null,null,null,null,null,null,null,null,null,0]
[null,null,null,null,null,null,null,null,null,0]
[null,null,null,null,null,null,null,null,null,0]
[null,null,null,null,null,null,null,null,null,0]
[null,null,null,null,null,null,null,null,null,0]
[null,null,null,null,null,null,null,null,null,0]
[null,null,null,null,null,null,null,null,null,0]
[null,null,null,null,null,null,null,null,null,0]
[null,null,null,null,null,null,null,null,null,0]
[null,null,null,null,null,null,null,null,null,0]
[null,null,null,null,null,null,null,null,null,0]
[null,null,null,null,null,null,null,null,null,0]
[null,null,null,null,null,null,null,null,null,0]
[null,null,null,null,null,null,null,null,null,0]
[null,null,null,null,null,null,null,null,null,0]
[null,null,null,null,null,null,null,null,null,0]
[null,null,null,null,null,null,null,null,null,0]
[null,null,null,null,null,null,null,null,null,0]
[null,null,null,null,null,null,null,null,null,0]
[null,null,null,null,null,null,null,null,null,0]
[null,null,null,null,null,null,null,null,null,0]
[null,null,null,null,null,null,null,null,null,0]
[null,null,null,null,null,null,null,null,null,0]
[null,null,null,null,null,null,null,null,null,0]
[null,null,null,null,null,null,null,null,null,0]
[null,null,null,null,null,null,null,null,null,0]
[null,null,null,null,null,null,null,null,null,0]
[null,null,null,null,null,null,null,null,null,0]
[null,null,null,null,null,null,null,null,null,0]
[null,null,null,null,null,null,null,null,null,0]
[null,null,null,null,null,null,null,null,null,0]
[null,null,null,null,null,null,null,null,null,0]
[null,null,null,null,null,null,null,null,null,0]
[null,null,null,null,null,null,null,null,null,0]
[null,null,null,null,null,null,null,null,null,0]
[null,null,null,null,null,null,null,null,null,0]
[null,null,null,null,null,null,null,null,null,0]
[null,null,null,null,null,null,null,null,null,0]
[null,null,null,null,null,null,null,null,null,0]
[null,null,null,null,null,null,null,null,null,0]
[null,null,null,null,null,null,null,null,null,0]
[null,null,null,null,null,null,null,null,null,0]
[null,null,null,null,null,null,null,null,null,{"$f":"SUM(E131, H131:I131)","v":0}]
[null,null,null,null,null,null,null,null,null,0]
[null,null,null,null,null,null,null,null,null,0]
[null,null,null,null,null,null,null,null,null,0]
[null,null,null,null,null,null,null,null,null,0]
[null,null,null,null,null,null,null,null,null,0]
[null,null,null,null,null,null,null,null,null,0]
[null,null,null,null,null,null,null,null,null,0]
[null,null,null,null,null,null,null,null,null,0]
[null,null,null,null,null,null,null,null,null,0]
[null,null,null,null,null,null,null,null,null,0]
[null,null,null,null,null,null,null,null,null,0]
[null,null,null,null,null,null,null,null,null,0]
[null,null,null,null,null,null,null,null,null,0]
[null,null,null,null,null,null,null,null,null,0]
[null,null,null,null,null,null,null,null,null,0]
[null,null,null,null,null,null,null,null,null,0]
[null,null,null,null,null,null,null,null,null,0]
[null,null,null,null,null,null,null,null,null,0]
[null,null,null,null,null,null,null,null,null,0]
[null,null,null,null,null,null,null,null,null,0]
[null,null,null,null,null,null,null,null,null,0]
[null,null,null,null,null,null,null,null,null,0]
[null,null,null,null,null,null,null,null,null,0]
[null,null,null,null,null,null,null,null,null,0]
[null,null,null,null,null,null,null,null,null,0]
[null,null,null,null,null,null,null,null,null,0]
[null,null,null,null,null,null,null,null,null,0]
[null,null,null,null,null,null,null,null,null,0]
[null,null,null,null,null,null,null,null,null,0]
[null,null,null,null,null,null,null,null,null,0]
[null,null,null,null,null,null,null,null,null,0]
[null,null,null,null,null,null,null,null,null,0]
[null,null,null,null,null,null,null,null,null,0]
[null,null,null,null,null,null,null,null,null,0]
[null,null,null,null,null,null,null,null,null,0]
[null,null,null,null,null,null,null,null,null,0]
[null,null,null,null,null,null,null,null,null,0]
[null,null,null,null,null,null,null,null,null,0]
[null,null,null,null,null,null,null,null,null,0]
[null,null,null,null,null,null,null,null,null,0]
[null,null,null,null,null,null,null,null,null,0]
[null,null,null,null,null,null,null,null,null,0]
[null,null,null,null,null,null,null,null,null,0]
[null,null,null,null,null,null,null,null,null,0]
[null,null,null,null,null,null,null,null,null,0]
[null,null,null,null,null,null,null,null,null,0]
[null,null,null,null,null,null,null,null,null,0]
[null,null,null,null,null,null,null,null,null,0]
[null,null,null,null,null,null,null,null,null,0]
[null,null,null,null,null,null,null,null,null,0]
[null,null,null,null,null,null,null,null,null,0]
[null,null,null,null,null,null,null,null,null,0]
[null,null,null,null,null,null,null,null,null,0]
[null,null,null,null,null,null,null,null,null,0]
[null,null,null,null,null,null,null,null,null,0]
[null,null,null,null,null,null,null,null,null,0]
[null,null,null,null,null,null,null,null,null,0]
[null,null,null,null,null,null,null,null,null,0]
[null,null,null,null,null,null,null,null,null,0]
[null,null,null,null,null,null,null,null,null,0]
[null,null,null,null,null,null,null,null,null,0]
[null,null,null,null,null,null,null,null,null,0]
[null,null,null,null,null,null,null,null,null,0]
[null,null,null,null,null,null,null,null,null,{"$f":"SUM(E195, H195:I195)","v":0}]
[null,null,null,null,null,null,null,null,null,0]
[null,null,null,null,null,null,null,null,null,0]
[null,null,null,null,null,null,null,null,null,0]
[null,null,null,null,null,null,null,null,null,0]
[null,null,null,null,null,null,null,null,null,0]
[null,null,null,null,null,null,null,null,null,0]
[null,null,null,null,null,null,null,null,null,0]
[null,null,null,null,null,null,null,null,null,0]
[null,null,null,null,null,null,null,null,null,0]
[null,null,null,null,null,null,null,null,null,0]
[null,null,null,null,null,null,null,null,null,0]
[null,null,null,null,null,null,null,null,null,0]
[null,null,null,null,null,null,null,null,null,0]
[null,null,null,null,null,null,null,null,null,0]
[null,null,null,null,null,null,null,null,null,0]
[null,null,null,null,null,null,null,null,null,0]
[null,null,null,null,null,null,null,null,null,0]
[null,null,null,null,null,null,null,null,null,0]
[null,null,null,null,null,null,null,null,null,0]
[null,null,null,null,null,null,null,null,null,0]
[null,null,null,null,null,null,null,null,null,0]
[null,null,null,null,null,null,null,null,null,0]
[null,null,null,null,null,null,null,null,null,0]
[null,null,null,null,null,null,null,null,null,0]
[null,null,null,null,null,null,null,null,null,0]
[null,null,null,null,null,null,null,null,null,0]
[null,null,null,null,null,null,null,null,null,0]
[null,null,null,null,null,null,null,null,null,0]
[null,null,null,null,null,null,null,null,null,0]
[null,null,null,null,null,null,null,null,null,0]
[null,null,null,null,null,null,null,null,null,0]
[null,null,null,null,null,null,null,null,null,0]
[null,null,null,null,null,null,null,null,null,0]
[null,null,null,null,null,null,null,null,null,0]
[null,null,null,null,null,null,null,null,null,0]
[null,null,null,null,null,null,null,null,null,0]
[null,null,null,null,null,null,null,null,null,0]
[null,null,null,null,null,null,null,null,null,0]
[null,null,null,null,null,null,null,null,null,0]
[null,null,null,null,null,null,null,null,null,0]
[null,null,null,null,null,null,null,null,null,0]
[null,null,null,null,null,null,null,null,null,0]
[null,null,null,null,null,null,null,null,null,0]
[null,null,null,null,null,null,null,null,null,0]
[]
[]
[]
[]
[]
[]
[]
[]
[]
[]
[]
[]
[]
[]
[]
[]
[]
[]
[]
[]
[]
[]
[]
[]
[]
[]
[]
[]
[]
[]
[]
[]
[]
[]
[]
[]
[]
[]
[]
[]
[]
[]
[]
[]
[]
[]
[]
[]
[]
[]
[]
[]
[]
[]
[]
[]
[]
[]
[]
[]
[]
[]
[]
[]
[]
[]
[]
[]
[]
[]
[]
[]
[]
[]
[]
[]
[]
[]
[]
[]
[]
[]
[]
[]
[]
[]
[]
[]
[]
[]
[]
[]
[]
[]
[]
[]
[]
[]
[]
[]
[]
[]
[]
[]
[]
[]
[]
[]
[]
[]
[]
[]
[]
[]
[]
[]
[]
[]
[]
[]
[]
[]
[]
[]
[]
[]
[]
[]
[]
[]
[]
[]
[]
[]
[]
[]
[]
[]
[]
[]
[]
[]
[]
[]
[]
[]
[]
[]
[]
[]
[]
[]
[]
[]
[]
[]
[]
[]
[]
[]
[]
[]
[]
[]
[]
[]
[]
[]
[]
[]
[]
[]
[]
[]
[]
[]
[]
[]
[]
[]
[]
[]
[]
[]
[]
[]
[]
[]
[]
[]
[]
[]
[]
[]
[]
[]
[]
[]
[]
[]
[]
[]
[]
[]
[]
[]
[]
[]
[]
[]
[]
[]
[]
[]
[]
[]
[]
[]
[]
[]
[]
[]
[]
[]
[]
[]
[]
[]
[]
[]
[]
[]
[]
[]
[]
[]
[]
[]
[]
[]
[]
[]
[]
[]
[]
[]
[]
[]
[]
[]
[]
[]
[]
[]
[]
[]
[]
[]
[]
[]
[]
[]
[]
[]
[]
[]
[]
[]
[]
[]
[]
[]
[]
[]
[]
[]
[]
[]
[]
[]
[]
[]
[]
[]
[]
[]
[]
[]
[]
[]
[]
[]
[]
[]
[]
[]
[]
[]
[]
[]
[]
[]
[]
[]
[]
[]
[]
[]
[]
[]
[]
[]
[]
[]
[]
[]
[]
[]
[]
[]
[]
[]
[]
[]
[]
[]
[]
[]
[]
[]
[]
[]
[]
[]
[]
[]
[]
[]
[]
[]
[]
[]
[]
[]
[]
[]
[]
[]
[]
[]
[]
[]
[]
[]
[]
[]
[]
[]
[]
[]
[]
[]
[]
[]
[]
[]
[]
[]
[]
[]
[]
[]
[]
[]
[]
[]
[]
[]
[]
[]
[]
[]
[]
[]
[]
[]
[]
[]
[]
[]
[]
[]
[]
[]
[]
[]
[]
[]
[]
[]
[]
[]
[]
[]
[]
[]
[]
[]
[]
[]
[]
[]
[]
[]
[]
[]
[]
[]
[]
[]
[]
[]
[]
[null,null,null,null,null,null,null,null,null,{"$f":" SUM(E663,#REF!, H663,I663,#REF!)","v":{"$error":"#REF!"}}]
[null,null,null,null,null,null,null,null,null,{"$f":" SUM(E664,#REF!, H664,I664,#REF!)","v":{"$error":"#REF!"}}]
[null,null,null,null,null,null,null,null,null,{"$f":" SUM(E665,#REF!, H665,I665,#REF!)","v":{"$error":"#REF!"}}]
[null,null,null,null,null,null,null,null,null,{"$f":" SUM(E666,#REF!, H666,I666,#REF!)","v":{"$error":"#REF!"}}]
[null,null,null,null,null,null,null,null,null,{"$f":" SUM(E667,#REF!, H667,I667,#REF!)","v":{"$error":"#REF!"}}]
[null,null,null,null,null,null,null,null,null,{"$f":" SUM(E668,#REF!, H668,I668,#REF!)","v":{"$error":"#REF!"}}]
[null,null,null,null,null,null,null,null,null,{"$f":" SUM(E669,#REF!, H669,I669,#REF!)","v":{"$error":"#REF!"}}]
[null,null,null,null,null,null,null,null,null,{"$f":" SUM(E670,#REF!, H670,I670,#REF!)","v":{"$error":"#REF!"}}]
[null,null,null,null,null,null,null,null,null,{"$f":" SUM(E671,#REF!, H671,I671,#REF!)","v":{"$error":"#REF!"}}]
[null,null,null,null,null,null,null,null,null,{"$f":" SUM(E672,#REF!, H672,I672,#REF!)","v":{"$error":"#REF!"}}]
[null,null,null,null,null,null,null,null,null,{"$f":" SUM(E673,#REF!, H673,I673,#REF!)","v":{"$error":"#REF!"}}]
[null,null,null,null,null,null,null,null,null,{"$f":" SUM(E674,#REF!, H674,I674,#REF!)","v":{"$error":"#REF!"}}]
[null,null,null,null,null,null,null,null,null,{"$f":" SUM(E675,#REF!, H675,I675,#REF!)","v":{"$error":"#REF!"}}]
[null,null,null,null,null,null,null,null,null,{"$f":" SUM(E676,#REF!, H676,I676,#REF!)","v":{"$error":"#REF!"}}]
[null,null,null,null,null,null,null,null,null,{"$f":" SUM(E677,#REF!, H677,I677,#REF!)","v":{"$error":"#REF!"}}]
[null,null,null,null,null,null,null,null,null,{"$f":" SUM(E678,#REF!, H678,I678,#REF!)","v":{"$error":"#REF!"}}]
[null,null,null,null,null,null,null,null,null,{"$f":" SUM(E679,#REF!, H679,I679,#REF!)","v":{"$error":"#REF!"}}]
[null,null,null,null,null,null,null,null,null,{"$f":" SUM(E680,#REF!, H680,I680,#REF!)","v":{"$error":"#REF!"}}]
[null,null,null,null,null,null,null,null,null,{"$f":" SUM(E681,#REF!, H681,I681,#REF!)","v":{"$error":"#REF!"}}]
[null,null,null,null,null,null,null,null,null,{"$f":" SUM(E682,#REF!, H682,I682,#REF!)","v":{"$error":"#REF!"}}]
[null,null,null,null,null,null,null,null,null,{"$f":" SUM(E683,#REF!, H683,I683,#REF!)","v":{"$error":"#REF!"}}]
[null,null,null,null,null,null,null,null,null,{"$f":" SUM(E684,#REF!, H684,I684,#REF!)","v":{"$error":"#REF!"}}]
[null,null,null,null,null,null,null,null,null,{"$f":" SUM(E685,#REF!, H685,I685,#REF!)","v":{"$error":"#REF!"}}]
[null,null,null,null,null,null,null,null,null,{"$f":" SUM(E686,#REF!, H686,I686,#REF!)","v":{"$error":"#REF!"}}]
[null,null,null,null,null,null,null,null,null,{"$f":" SUM(E687,#REF!, H687,I687,#REF!)","v":{"$error":"#REF!"}}]
[null,null,null,null,null,null,null,null,null,{"$f":" SUM(E688,#REF!, H688,I688,#REF!)","v":{"$error":"#REF!"}}]
[null,null,null,null,null,null,null,null,null,{"$f":" SUM(E689,#REF!, H689,I689,#REF!)","v":{"$error":"#REF!"}}]
[null,null,null,null,null,null,null,null,null,{"$f":" SUM(E690,#REF!, H690,I690,#REF!)","v":{"$error":"#REF!"}}]
[null,null,null,null,null,null,null,null,null,{"$f":" SUM(E691,#REF!, H691,I691,#REF!)","v":{"$error":"#REF!"}}]
[null,null,null,null,null,null,null,null,null,{"$f":" SUM(E692,#REF!, H692,I692,#REF!)","v":{"$error":"#REF!"}}]
[null,null,null,null,null,null,null,null,null,{"$f":" SUM(E693,#REF!, H693,I693,#REF!)","v":{"$error":"#REF!"}}]
[null,null,null,null,null,null,null,null,null,{"$f":" SUM(E694,#REF!, H694,I694,#REF!)","v":{"$error":"#REF!"}}]
[null,null,null,null,null,null,null,null,null,{"$f":" SUM(E695,#REF!, H695,I695,#REF!)","v":{"$error":"#REF!"}}]
[null,null,null,null,null,null,null,null,null,{"$f":" SUM(E696,#REF!, H696,I696,#REF!)","v":{"$error":"#REF!"}}]
[null,null,null,null,null,null,null,null,null,{"$f":" SUM(E697,#REF!, H697,I697,#REF!)","v":{"$error":"#REF!"}}]
[null,null,null,null,null,null,null,null,null,{"$f":" SUM(E698,#REF!, H698,I698,#REF!)","v":{"$error":"#REF!"}}]
[null,null,null,null,null,null,null,null,null,{"$f":" SUM(E699,#REF!, H699,I699,#REF!)","v":{"$error":"#REF!"}}]
[null,null,null,null,null,null,null,null,null,{"$f":" SUM(E700,#REF!, H700,I700,#REF!)","v":{"$error":"#REF!"}}]
[null,null,null,null,null,null,null,null,null,{"$f":" SUM(E701,#REF!, H701,I701,#REF!)","v":{"$error":"#REF!"}}]
[null,null,null,null,null,null,null,null,null,{"$f":" SUM(E702,#REF!, H702,I702,#REF!)","v":{"$error":"#REF!"}}]
[null,null,null,null,null,null,null,null,null,{"$f":" SUM(E703,#REF!, H703,I703,#REF!)","v":{"$error":"#REF!"}}]
[null,null,null,null,null,null,null,null,null,{"$f":" SUM(E704,#REF!, H704,I704,#REF!)","v":{"$error":"#REF!"}}]
[null,null,null,null,null,null,null,null,null,{"$f":" SUM(E705,#REF!, H705,I705,#REF!)","v":{"$error":"#REF!"}}]
[null,null,null,null,null,null,null,null,null,{"$f":" SUM(E706,#REF!, H706,I706,#REF!)","v":{"$error":"#REF!"}}]
[null,null,null,null,null,null,null,null,null,{"$f":" SUM(E707,#REF!, H707,I707,#REF!)","v":{"$error":"#REF!"}}]
[null,null,null,null,null,null,null,null,null,{"$f":" SUM(E708,#REF!, H708,I708,#REF!)","v":{"$error":"#REF!"}}]
[null,null,null,null,null,null,null,null,null,{"$f":" SUM(E709,#REF!, H709,I709,#REF!)","v":{"$error":"#REF!"}}]
[null,null,null,null,null,null,null,null,null,{"$f":" SUM(E710,#REF!, H710,I710,#REF!)","v":{"$error":"#REF!"}}]
[null,null,null,null,null,null,null,null,null,{"$f":" SUM(E711,#REF!, H711,I711,#REF!)","v":{"$error":"#REF!"}}]
[null,null,null,null,null,null,null,null,null,{"$f":" SUM(E712,#REF!, H712,I712,#REF!)","v":{"$error":"#REF!"}}]
[null,null,null,null,null,null,null,null,null,{"$f":" SUM(E713,#REF!, H713,I713,#REF!)","v":{"$error":"#REF!"}}]
[null,null,null,null,null,null,null,null,null,{"$f":" SUM(E714,#REF!, H714,I714,#REF!)","v":{"$error":"#REF!"}}]
[null,null,null,null,null,null,null,null,null,{"$f":" SUM(E715,#REF!, H715,I715,#REF!)","v":{"$error":"#REF!"}}]
[null,null,null,null,null,null,null,null,null,{"$f":" SUM(E716,#REF!, H716,I716,#REF!)","v":{"$error":"#REF!"}}]
[null,null,null,null,null,null,null,null,null,{"$f":" SUM(E717,#REF!, H717,I717,#REF!)","v":{"$error":"#REF!"}}]
[null,null,null,null,null,null,null,null,null,{"$f":" SUM(E718,#REF!, H718,I718,#REF!)","v":{"$error":"#REF!"}}]
[null,null,null,null,null,null,null,null,null,{"$f":" SUM(E719,#REF!, H719,I719,#REF!)","v":{"$error":"#REF!"}}]
[null,null,null,null,null,null,null,null,null,{"$f":" SUM(E720,#REF!, H720,I720,#REF!)","v":{"$error":"#REF!"}}]
[null,null,null,null,null,null,null,null,null,{"$f":" SUM(E721,#REF!, H721,I721,#REF!)","v":{"$error":"#REF!"}}]
[null,null,null,null,null,null,null,null,null,{"$f":" SUM(E722,#REF!, H722,I722,#REF!)","v":{"$error":"#REF!"}}]
[null,null,null,null,null,null,null,null,null,{"$f":" SUM(E723,#REF!, H723,I723,#REF!)","v":{"$error":"#REF!"}}]
[null,null,null,null,null,null,null,null,null,{"$f":" SUM(E724,#REF!, H724,I724,#REF!)","v":{"$error":"#REF!"}}]
[null,null,null,null,null,null,null,null,null,{"$f":" SUM(E725,#REF!, H725,I725,#REF!)","v":{"$error":"#REF!"}}]
[null,null,null,null,null,null,null,null,null,{"$f":" SUM(E726,#REF!, H726,I726,#REF!)","v":{"$error":"#REF!"}}]
[null,null,null,null,null,null,null,null,null,{"$f":" SUM(E727,#REF!, H727,I727,#REF!)","v":{"$error":"#REF!"}}]
[null,null,null,null,null,null,null,null,null,{"$f":" SUM(E728,#REF!, H728,I728,#REF!)","v":{"$error":"#REF!"}}]
[null,null,null,null,null,null,null,null,null,{"$f":" SUM(E729,#REF!, H729,I729,#REF!)","v":{"$error":"#REF!"}}]
[null,null,null,null,null,null,null,null,null,{"$f":" SUM(E730,#REF!, H730,I730,#REF!)","v":{"$error":"#REF!"}}]
[null,null,null,null,null,null,null,null,null,{"$f":" SUM(E731,#REF!, H731,I731,#REF!)","v":{"$error":"#REF!"}}]
[null,null,null,null,null,null,null,null,null,{"$f":" SUM(E732,#REF!, H732,I732,#REF!)","v":{"$error":"#REF!"}}]
[null,null,null,null,null,null,null,null,null,{"$f":" SUM(E733,#REF!, H733,I733,#REF!)","v":{"$error":"#REF!"}}]
[null,null,null,null,null,null,null,null,null,{"$f":" SUM(E734,#REF!, H734,I734,#REF!)","v":{"$error":"#REF!"}}]
[null,null,null,null,null,null,null,null,null,{"$f":" SUM(E735,#REF!, H735,I735,#REF!)","v":{"$error":"#REF!"}}]
[null,null,null,null,null,null,null,null,null,{"$f":" SUM(E736,#REF!, H736,I736,#REF!)","v":{"$error":"#REF!"}}]
[null,null,null,null,null,null,null,null,null,{"$f":" SUM(E737,#REF!, H737,I737,#REF!)","v":{"$error":"#REF!"}}]
[null,null,null,null,null,null,null,null,null,{"$f":" SUM(E738,#REF!, H738,I738,#REF!)","v":{"$error":"#REF!"}}]
[null,null,null,null,null,null,null,null,null,{"$f":" SUM(E739,#REF!, H739,I739,#REF!)","v":{"$error":"#REF!"}}]
[null,null,null,null,null,null,null,null,null,{"$f":" SUM(E740,#REF!, H740,I740,#REF!)","v":{"$error":"#REF!"}}]
[null,null,null,null,null,null,null,null,null,{"$f":" SUM(E741,#REF!, H741,I741,#REF!)","v":{"$error":"#REF!"}}]
[null,null,null,null,null,null,null,null,null,{"$f":" SUM(E742,#REF!, H742,I742,#REF!)","v":{"$error":"#REF!"}}]
[null,null,null,null,null,null,null,null,null,{"$f":" SUM(E743,#REF!, H743,I743,#REF!)","v":{"$error":"#REF!"}}]
[null,null,null,null,null,null,null,null,null,{"$f":" SUM(E744,#REF!, H744,I744,#REF!)","v":{"$error":"#REF!"}}]
[null,null,null,null,null,null,null,null,null,{"$f":" SUM(E745,#REF!, H745,I745,#REF!)","v":{"$error":"#REF!"}}]
[null,null,null,null,null,null,null,null,null,{"$f":" SUM(E746,#REF!, H746,I746,#REF!)","v":{"$error":"#REF!"}}]
[null,null,null,null,null,null,null,null,null,{"$f":" SUM(E747,#REF!, H747,I747,#REF!)","v":{"$error":"#REF!"}}]
[null,null,null,null,null,null,null,null,null,{"$f":" SUM(E748,#REF!, H748,I748,#REF!)","v":{"$error":"#REF!"}}]
[null,null,null,null,null,null,null,null,null,{"$f":" SUM(E749,#REF!, H749,I749,#REF!)","v":{"$error":"#REF!"}}]
[null,null,null,null,null,null,null,null,null,{"$f":" SUM(E750,#REF!, H750,I750,#REF!)","v":{"$error":"#REF!"}}]
[null,null,null,null,null,null,null,null,null,{"$f":" SUM(E751,#REF!, H751,I751,#REF!)","v":{"$error":"#REF!"}}]
[null,null,null,null,null,null,null,null,null,{"$f":" SUM(E752,#REF!, H752,I752,#REF!)","v":{"$error":"#REF!"}}]
[null,null,null,null,null,null,null,null,null,{"$f":" SUM(E753,#REF!, H753,I753,#REF!)","v":{"$error":"#REF!"}}]
[null,null,null,null,null,null,null,null,null,{"$f":" SUM(E754,#REF!, H754,I754,#REF!)","v":{"$error":"#REF!"}}]
[null,null,null,null,null,null,null,null,null,{"$f":" SUM(E755,#REF!, H755,I755,#REF!)","v":{"$error":"#REF!"}}]
[null,null,null,null,null,null,null,null,null,{"$f":" SUM(E756,#REF!, H756,I756,#REF!)","v":{"$error":"#REF!"}}]
[null,null,null,null,null,null,null,null,null,{"$f":" SUM(E757,#REF!, H757,I757,#REF!)","v":{"$error":"#REF!"}}]
[null,null,null,null,null,null,null,null,null,{"$f":" SUM(E758,#REF!, H758,I758,#REF!)","v":{"$error":"#REF!"}}]
[null,null,null,null,null,null,null,null,null,{"$f":" SUM(E759,#REF!, H759,I759,#REF!)","v":{"$error":"#REF!"}}]
[null,null,null,null,null,null,null,null,null,{"$f":" SUM(E760,#REF!, H760,I760,#REF!)","v":{"$error":"#REF!"}}]
[null,null,null,null,null,null,null,null,null,{"$f":" SUM(E761,#REF!, H761,I761,#REF!)","v":{"$error":"#REF!"}}]
[null,null,null,null,null,null,null,null,null,{"$f":" SUM(E762,#REF!, H762,I762,#REF!)","v":{"$error":"#REF!"}}]
[null,null,null,null,null,null,null,null,null,{"$f":" SUM(E763,#REF!, H763,I763,#REF!)","v":{"$error":"#REF!"}}]
[null,null,null,null,null,null,null,null,null,{"$f":" SUM(E764,#REF!, H764,I764,#REF!)","v":{"$error":"#REF!"}}]
[null,null,null,null,null,null,null,null,null,{"$f":" SUM(E765,#REF!, H765,I765,#REF!)","v":{"$error":"#REF!"}}]
[null,null,null,null,null,null,null,null,null,{"$f":" SUM(E766,#REF!, H766,I766,#REF!)","v":{"$error":"#REF!"}}]
[null,null,null,null,null,null,null,null,null,{"$f":" SUM(E767,#REF!, H767,I767,#REF!)","v":{"$error":"#REF!"}}]
[null,null,null,null,null,null,null,null,null,{"$f":" SUM(E768,#REF!, H768,I768,#REF!)","v":{"$error":"#REF!"}}]
[null,null,null,null,null,null,null,null,null,{"$f":" SUM(E769,#REF!, H769,I769,#REF!)","v":{"$error":"#REF!"}}]
[null,null,null,null,null,null,null,null,null,{"$f":" SUM(E770,#REF!, H770,I770,#REF!)","v":{"$error":"#REF!"}}]
[null,null,null,null,null,null,null,null,null,{"$f":" SUM(E771,#REF!, H771,I771,#REF!)","v":{"$error":"#REF!"}}]
[null,null,null,null,null,null,null,null,null,{"$f":" SUM(E772,#REF!, H772,I772,#REF!)","v":{"$error":"#REF!"}}]
[null,null,null,null,null,null,null,null,null,{"$f":" SUM(E773,#REF!, H773,I773,#REF!)","v":{"$error":"#REF!"}}]
[null,null,null,null,null,null,null,null,null,{"$f":" SUM(E774,#REF!, H774,I774,#REF!)","v":{"$error":"#REF!"}}]
[null,null,null,null,null,null,null,null,null,{"$f":" SUM(E775,#REF!, H775,I775,#REF!)","v":{"$error":"#REF!"}}]
[null,null,null,null,null,null,null,null,null,{"$f":" SUM(E776,#REF!, H776,I776,#REF!)","v":{"$error":"#REF!"}}]
[null,null,null,null,null,null,null,null,null,{"$f":" SUM(E777,#REF!, H777,I777,#REF!)","v":{"$error":"#REF!"}}]
[null,null,null,null,null,null,null,null,null,{"$f":" SUM(E778,#REF!, H778,I778,#REF!)","v":{"$error":"#REF!"}}]
[null,null,null,null,null,null,null,null,null,{"$f":" SUM(E779,#REF!, H779,I779,#REF!)","v":{"$error":"#REF!"}}]
[null,null,null,null,null,null,null,null,null,{"$f":" SUM(E780,#REF!, H780,I780,#REF!)","v":{"$error":"#REF!"}}]
[null,null,null,null,null,null,null,null,null,{"$f":" SUM(E781,#REF!, H781,I781,#REF!)","v":{"$error":"#REF!"}}]
[null,null,null,null,null,null,null,null,null,{"$f":" SUM(E782,#REF!, H782,I782,#REF!)","v":{"$error":"#REF!"}}]
[null,null,null,null,null,null,null,null,null,{"$f":" SUM(E783,#REF!, H783,I783,#REF!)","v":{"$error":"#REF!"}}]
[null,null,null,null,null,null,null,null,null,{"$f":" SUM(E784,#REF!, H784,I784,#REF!)","v":{"$error":"#REF!"}}]
[null,null,null,null,null,null,null,null,null,{"$f":" SUM(E785,#REF!, H785,I785,#REF!)","v":{"$error":"#REF!"}}]
[null,null,null,null,null,null,null,null,null,{"$f":" SUM(E786,#REF!, H786,I786,#REF!)","v":{"$error":"#REF!"}}]
[null,null,null,null,null,null,null,null,null,{"$f":" SUM(E787,#REF!, H787,I787,#REF!)","v":{"$error":"#REF!"}}]
[null,null,null,null,null,null,null,null,null,{"$f":" SUM(E788,#REF!, H788,I788,#REF!)","v":{"$error":"#REF!"}}]
[null,null,null,null,null,null,null,null,null,{"$f":" SUM(E789,#REF!, H789,I789,#REF!)","v":{"$error":"#REF!"}}]
[null,null,null,null,null,null,null,null,null,{"$f":" SUM(E790,#REF!, H790,I790,#REF!)","v":{"$error":"#REF!"}}]
[null,null,null,null,null,null,null,null,null,{"$f":" SUM(E791,#REF!, H791,I791,#REF!)","v":{"$error":"#REF!"}}]
[null,null,null,null,null,null,null,null,null,{"$f":" SUM(E792,#REF!, H792,I792,#REF!)","v":{"$error":"#REF!"}}]
[null,null,null,null,null,null,null,null,null,{"$f":" SUM(E793,#REF!, H793,I793,#REF!)","v":{"$error":"#REF!"}}]
[null,null,null,null,null,null,null,null,null,{"$f":" SUM(E794,#REF!, H794,I794,#REF!)","v":{"$error":"#REF!"}}]
[null,null,null,null,null,null,null,null,null,{"$f":" SUM(E795,#REF!, H795,I795,#REF!)","v":{"$error":"#REF!"}}]
[null,null,null,null,null,null,null,null,null,{"$f":" SUM(E796,#REF!, H796,I796,#REF!)","v":{"$error":"#REF!"}}]
[null,null,null,null,null,null,null,null,null,{"$f":" SUM(E797,#REF!, H797,I797,#REF!)","v":{"$error":"#REF!"}}]
[null,null,null,null,null,null,null,null,null,{"$f":" SUM(E798,#REF!, H798,I798,#REF!)","v":{"$error":"#REF!"}}]
[null,null,null,null,null,null,null,null,null,{"$f":" SUM(E799,#REF!, H799,I799,#REF!)","v":{"$error":"#REF!"}}]
[null,null,null,null,null,null,null,null,null,{"$f":" SUM(E800,#REF!, H800,I800,#REF!)","v":{"$error":"#REF!"}}]
[null,null,null,null,null,null,null,null,null,{"$f":" SUM(E801,#REF!, H801,I801,#REF!)","v":{"$error":"#REF!"}}]
[null,null,null,null,null,null,null,null,null,{"$f":" SUM(E802,#REF!, H802,I802,#REF!)","v":{"$error":"#REF!"}}]
[null,null,null,null,null,null,null,null,null,{"$f":" SUM(E803,#REF!, H803,I803,#REF!)","v":{"$error":"#REF!"}}]
[null,null,null,null,null,null,null,null,null,{"$f":" SUM(E804,#REF!, H804,I804,#REF!)","v":{"$error":"#REF!"}}]
[null,null,null,null,null,null,null,null,null,{"$f":" SUM(E805,#REF!, H805,I805,#REF!)","v":{"$error":"#REF!"}}]
[null,null,null,null,null,null,null,null,null,{"$f":" SUM(E806,#REF!, H806,I806,#REF!)","v":{"$error":"#REF!"}}]
[null,null,null,null,null,null,null,null,null,{"$f":" SUM(E807,#REF!, H807,I807,#REF!)","v":{"$error":"#REF!"}}]
[null,null,null,null,null,null,null,null,null,{"$f":" SUM(E808,#REF!, H808,I808,#REF!)","v":{"$error":"#REF!"}}]
[null,null,null,null,null,null,null,null,null,{"$f":" SUM(E809,#REF!, H809,I809,#REF!)","v":{"$error":"#REF!"}}]
[null,null,null,null,null,null,null,null,null,{"$f":" SUM(E810,#REF!, H810,I810,#REF!)","v":{"$error":"#REF!"}}]
[null,null,null,null,null,null,null,null,null,{"$f":" SUM(E811,#REF!, H811,I811,#REF!)","v":{"$error":"#REF!"}}]
[null,null,null,null,null,null,null,null,null,{"$f":" SUM(E812,#REF!, H812,I812,#REF!)","v":{"$error":"#REF!"}}]
[null,null,null,null,null,null,null,null,null,{"$f":" SUM(E813,#REF!, H813,I813,#REF!)","v":{"$error":"#REF!"}}]
[null,null,null,null,null,null,null,null,null,{"$f":" SUM(E814,#REF!, H814,I814,#REF!)","v":{"$error":"#REF!"}}]
[null,null,null,null,null,null,null,null,null,{"$f":" SUM(E815,#REF!, H815,I815,#REF!)","v":{"$error":"#REF!"}}]
[null,null,null,null,null,null,null,null,null,{"$f":" SUM(E816,#REF!, H816,I816,#REF!)","v":{"$error":"#REF!"}}]
[null,null,null,null,null,null,null,null,null,{"$f":" SUM(E817,#REF!, H817,I817,#REF!)","v":{"$error":"#REF!"}}]
[null,null,null,null,null,null,null,null,null,{"$f":" SUM(E818,#REF!, H818,I818,#REF!)","v":{"$error":"#REF!"}}]
[null,null,null,null,null,null,null,null,null,{"$f":" SUM(E819,#REF!, H819,I819,#REF!)","v":{"$error":"#REF!"}}]
[null,null,null,null,null,null,null,null,null,{"$f":" SUM(E820,#REF!, H820,I820,#REF!)","v":{"$error":"#REF!"}}]
[null,null,null,null,null,null,null,null,null,{"$f":" SUM(E821,#REF!, H821,I821,#REF!)","v":{"$error":"#REF!"}}]
[null,null,null,null,null,null,null,null,null,{"$f":" SUM(E822,#REF!, H822,I822,#REF!)","v":{"$error":"#REF!"}}]
[null,null,null,null,null,null,null,null,null,{"$f":" SUM(E823,#REF!, H823,I823,#REF!)","v":{"$error":"#REF!"}}]
[null,null,null,null,null,null,null,null,null,{"$f":" SUM(E824,#REF!, H824,I824,#REF!)","v":{"$error":"#REF!"}}]
[null,null,null,null,null,null,null,null,null,{"$f":" SUM(E825,#REF!, H825,I825,#REF!)","v":{"$error":"#REF!"}}]
[null,null,null,null,null,null,null,null,null,{"$f":" SUM(E826,#REF!, H826,I826,#REF!)","v":{"$error":"#REF!"}}]
[null,null,null,null,null,null,null,null,null,{"$f":" SUM(E827,#REF!, H827,I827,#REF!)","v":{"$error":"#REF!"}}]
[null,null,null,null,null,null,null,null,null,{"$f":" SUM(E828,#REF!, H828,I828,#REF!)","v":{"$error":"#REF!"}}]
[null,null,null,null,null,null,null,null,null,{"$f":" SUM(E829,#REF!, H829,I829,#REF!)","v":{"$error":"#REF!"}}]
[null,null,null,null,null,null,null,null,null,{"$f":" SUM(E830,#REF!, H830,I830,#REF!)","v":{"$error":"#REF!"}}]
[null,null,null,null,null,null,null,null,null,{"$f":" SUM(E831,#REF!, H831,I831,#REF!)","v":{"$error":"#REF!"}}]
[null,null,null,null,null,null,null,null,null,{"$f":" SUM(E832,#REF!, H832,I832,#REF!)","v":{"$error":"#REF!"}}]
[null,null,null,null,null,null,null,null,null,{"$f":" SUM(E833,#REF!, H833,I833,#REF!)","v":{"$error":"#REF!"}}]
[null,null,null,null,null,null,null,null,null,{"$f":" SUM(E834,#REF!, H834,I834,#REF!)","v":{"$error":"#REF!"}}]
[null,null,null,null,null,null,null,null,null,{"$f":" SUM(E835,#REF!, H835,I835,#REF!)","v":{"$error":"#REF!"}}]
[null,null,null,null,null,null,null,null,null,{"$f":" SUM(E836,#REF!, H836,I836,#REF!)","v":{"$error":"#REF!"}}]
[null,null,null,null,null,null,null,null,null,{"$f":" SUM(E837,#REF!, H837,I837,#REF!)","v":{"$error":"#REF!"}}]
[null,null,null,null,null,null,null,null,null,{"$f":" SUM(E838,#REF!, H838,I838,#REF!)","v":{"$error":"#REF!"}}]
[null,null,null,null,null,null,null,null,null,{"$f":" SUM(E839,#REF!, H839,I839,#REF!)","v":{"$error":"#REF!"}}]
[null,null,null,null,null,null,null,null,null,{"$f":" SUM(E840,#REF!, H840,I840,#REF!)","v":{"$error":"#REF!"}}]
[null,null,null,null,null,null,null,null,null,{"$f":" SUM(E841,#REF!, H841,I841,#REF!)","v":{"$error":"#REF!"}}]
[null,null,null,null,null,null,null,null,null,{"$f":" SUM(E842,#REF!, H842,I842,#REF!)","v":{"$error":"#REF!"}}]
[null,null,null,null,null,null,null,null,null,{"$f":" SUM(E843,#REF!, H843,I843,#REF!)","v":{"$error":"#REF!"}}]
[null,null,null,null,null,null,null,null,null,{"$f":" SUM(E844,#REF!, H844,I844,#REF!)","v":{"$error":"#REF!"}}]
[null,null,null,null,null,null,null,null,null,{"$f":" SUM(E845,#REF!, H845,I845,#REF!)","v":{"$error":"#REF!"}}]
[null,null,null,null,null,null,null,null,null,{"$f":" SUM(E846,#REF!, H846,I846,#REF!)","v":{"$error":"#REF!"}}]
[null,null,null,null,null,null,null,null,null,{"$f":" SUM(E847,#REF!, H847,I847,#REF!)","v":{"$error":"#REF!"}}]
[null,null,null,null,null,null,null,null,null,{"$f":" SUM(E848,#REF!, H848,I848,#REF!)","v":{"$error":"#REF!"}}]
[null,null,null,null,null,null,null,null,null,{"$f":" SUM(E849,#REF!, H849,I849,#REF!)","v":{"$error":"#REF!"}}]
[null,null,null,null,null,null,null,null,null,{"$f":" SUM(E850,#REF!, H850,I850,#REF!)","v":{"$error":"#REF!"}}]
[null,null,null,null,null,null,null,null,null,{"$f":" SUM(E851,#REF!, H851,I851,#REF!)","v":{"$error":"#REF!"}}]
[null,null,null,null,null,null,null,null,null,{"$f":" SUM(E852,#REF!, H852,I852,#REF!)","v":{"$error":"#REF!"}}]
[null,null,null,null,null,null,null,null,null,{"$f":" SUM(E853,#REF!, H853,I853,#REF!)","v":{"$error":"#REF!"}}]
[null,null,null,null,null,null,null,null,null,{"$f":" SUM(E854,#REF!, H854,I854,#REF!)","v":{"$error":"#REF!"}}]
[null,null,null,null,null,null,null,null,null,{"$f":" SUM(E855,#REF!, H855,I855,#REF!)","v":{"$error":"#REF!"}}]
[null,null,null,null,null,null,null,null,null,{"$f":" SUM(E856,#REF!, H856,I856,#REF!)","v":{"$error":"#REF!"}}]
[null,null,null,null,null,null,null,null,null,{"$f":" SUM(E857,#REF!, H857,I857,#REF!)","v":{"$error":"#REF!"}}]
[null,null,null,null,null,null,null,null,null,{"$f":" SUM(E858,#REF!, H858,I858,#REF!)","v":{"$error":"#REF!"}}]
[null,null,null,null,null,null,null,null,null,{"$f":" SUM(E859,#REF!, H859,I859,#REF!)","v":{"$error":"#REF!"}}]
[null,null,null,null,null,null,null,null,null,{"$f":" SUM(E860,#REF!, H860,I860,#REF!)","v":{"$error":"#REF!"}}]
[null,null,null,null,null,null,null,null,null,{"$f":" SUM(E861,#REF!, H861,I861,#REF!)","v":{"$error":"#REF!"}}]
[null,null,null,null,null,null,null,null,null,{"$f":" SUM(E862,#REF!, H862,I862,#REF!)","v":{"$error":"#REF!"}}]
[null,null,null,null,null,null,null,null,null,{"$f":" SUM(E863,#REF!, H863,I863,#REF!)","v":{"$error":"#REF!"}}]
[null,null,null,null,null,null,null,null,null,{"$f":" SUM(E864,#REF!, H864,I864,#REF!)","v":{"$error":"#REF!"}}]
[null,null,null,null,null,null,null,null,null,{"$f":" SUM(E865,#REF!, H865,I865,#REF!)","v":{"$error":"#REF!"}}]
[null,null,null,null,null,null,null,null,null,{"$f":" SUM(E866,#REF!, H866,I866,#REF!)","v":{"$error":"#REF!"}}]
[null,null,null,null,null,null,null,null,null,{"$f":" SUM(E867,#REF!, H867,I867,#REF!)","v":{"$error":"#REF!"}}]
[null,null,null,null,null,null,null,null,null,{"$f":" SUM(E868,#REF!, H868,I868,#REF!)","v":{"$error":"#REF!"}}]
[null,null,null,null,null,null,null,null,null,{"$f":" SUM(E869,#REF!, H869,I869,#REF!)","v":{"$error":"#REF!"}}]
[null,null,null,null,null,null,null,null,null,{"$f":" SUM(E870,#REF!, H870,I870,#REF!)","v":{"$error":"#REF!"}}]
[null,null,null,null,null,null,null,null,null,{"$f":" SUM(E871,#REF!, H871,I871,#REF!)","v":{"$error":"#REF!"}}]
[null,null,null,null,null,null,null,null,null,{"$f":" SUM(E872,#REF!, H872,I872,#REF!)","v":{"$error":"#REF!"}}]
[null,null,null,null,null,null,null,null,null,{"$f":" SUM(E873,#REF!, H873,I873,#REF!)","v":{"$error":"#REF!"}}]
[null,null,null,null,null,null,null,null,null,{"$f":" SUM(E874,#REF!, H874,I874,#REF!)","v":{"$error":"#REF!"}}]
[null,null,null,null,null,null,null,null,null,{"$f":" SUM(E875,#REF!, H875,I875,#REF!)","v":{"$error":"#REF!"}}]
[null,null,null,null,null,null,null,null,null,{"$f":" SUM(E876,#REF!, H876,I876,#REF!)","v":{"$error":"#REF!"}}]
[null,null,null,null,null,null,null,null,null,{"$f":" SUM(E877,#REF!, H877,I877,#REF!)","v":{"$error":"#REF!"}}]
[null,null,null,null,null,null,null,null,null,{"$f":" SUM(E878,#REF!, H878,I878,#REF!)","v":{"$error":"#REF!"}}]
[null,null,null,null,null,null,null,null,null,{"$f":" SUM(E879,#REF!, H879,I879,#REF!)","v":{"$error":"#REF!"}}]
[null,null,null,null,null,null,null,null,null,{"$f":" SUM(E880,#REF!, H880,I880,#REF!)","v":{"$error":"#REF!"}}]
[null,null,null,null,null,null,null,null,null,{"$f":" SUM(E881,#REF!, H881,I881,#REF!)","v":{"$error":"#REF!"}}]
[null,null,null,null,null,null,null,null,null,{"$f":" SUM(E882,#REF!, H882,I882,#REF!)","v":{"$error":"#REF!"}}]
[null,null,null,null,null,null,null,null,null,{"$f":" SUM(E883,#REF!, H883,I883,#REF!)","v":{"$error":"#REF!"}}]
[null,null,null,null,null,null,null,null,null,{"$f":" SUM(E884,#REF!, H884,I884,#REF!)","v":{"$error":"#REF!"}}]
[null,null,null,null,null,null,null,null,null,{"$f":" SUM(E885,#REF!, H885,I885,#REF!)","v":{"$error":"#REF!"}}]
[null,null,null,null,null,null,null,null,null,{"$f":" SUM(E886,#REF!, H886,I886,#REF!)","v":{"$error":"#REF!"}}]
[null,null,null,null,null,null,null,null,null,{"$f":" SUM(E887,#REF!, H887,I887,#REF!)","v":{"$error":"#REF!"}}]
[null,null,null,null,null,null,null,null,null,{"$f":" SUM(E888,#REF!, H888,I888,#REF!)","v":{"$error":"#REF!"}}]
[null,null,null,null,null,null,null,null,null,{"$f":" SUM(E889,#REF!, H889,I889,#REF!)","v":{"$error":"#REF!"}}]
[null,null,null,null,null,null,null,null,null,{"$f":" SUM(E890,#REF!, H890,I890,#REF!)","v":{"$error":"#REF!"}}]
[null,null,null,null,null,null,null,null,null,{"$f":" SUM(E891,#REF!, H891,I891,#REF!)","v":{"$error":"#REF!"}}]
[null,null,null,null,null,null,null,null,null,{"$f":" SUM(E892,#REF!, H892,I892,#REF!)","v":{"$error":"#REF!"}}]
[null,null,null,null,null,null,null,null,null,{"$f":" SUM(E893,#REF!, H893,I893,#REF!)","v":{"$error":"#REF!"}}]
[null,null,null,null,null,null,null,null,null,{"$f":" SUM(E894,#REF!, H894,I894,#REF!)","v":{"$error":"#REF!"}}]
[null,null,null,null,null,null,null,null,null,{"$f":" SUM(E895,#REF!, H895,I895,#REF!)","v":{"$error":"#REF!"}}]
[null,null,null,null,null,null,null,null,null,{"$f":" SUM(E896,#REF!, H896,I896,#REF!)","v":{"$error":"#REF!"}}]
[null,null,null,null,null,null,null,null,null,{"$f":" SUM(E897,#REF!, H897,I897,#REF!)","v":{"$error":"#REF!"}}]
[null,null,null,null,null,null,null,null,null,{"$f":" SUM(E898,#REF!, H898,I898,#REF!)","v":{"$error":"#REF!"}}]
[null,null,null,null,null,null,null,null,null,{"$f":" SUM(E899,#REF!, H899,I899,#REF!)","v":{"$error":"#REF!"}}]
[null,null,null,null,null,null,null,null,null,{"$f":" SUM(E900,#REF!, H900,I900,#REF!)","v":{"$error":"#REF!"}}]
[null,null,null,null,null,null,null,null,null,{"$f":" SUM(E901,#REF!, H901,I901,#REF!)","v":{"$error":"#REF!"}}]
[null,null,null,null,null,null,null,null,null,{"$f":" SUM(E902,#REF!, H902,I902,#REF!)","v":{"$error":"#REF!"}}]
[null,null,null,null,null,null,null,null,null,{"$f":" SUM(E903,#REF!, H903,I903,#REF!)","v":{"$error":"#REF!"}}]
[null,null,null,null,null,null,null,null,null,{"$f":" SUM(E904,#REF!, H904,I904,#REF!)","v":{"$error":"#REF!"}}]
[null,null,null,null,null,null,null,null,null,{"$f":" SUM(E905,#REF!, H905,I905,#REF!)","v":{"$error":"#REF!"}}]
[null,null,null,null,null,null,null,null,null,{"$f":" SUM(E906,#REF!, H906,I906,#REF!)","v":{"$error":"#REF!"}}]
[null,null,null,null,null,null,null,null,null,{"$f":" SUM(E907,#REF!, H907,I907,#REF!)","v":{"$error":"#REF!"}}]
[null,null,null,null,null,null,null,null,null,{"$f":" SUM(E908,#REF!, H908,I908,#REF!)","v":{"$error":"#REF!"}}]
[null,null,null,null,null,null,null,null,null,{"$f":" SUM(E909,#REF!, H909,I909,#REF!)","v":{"$error":"#REF!"}}]
[null,null,null,null,null,null,null,null,null,{"$f":" SUM(E910,#REF!, H910,I910,#REF!)","v":{"$error":"#REF!"}}]
[null,null,null,null,null,null,null,null,null,{"$f":" SUM(E911,#REF!, H911,I911,#REF!)","v":{"$error":"#REF!"}}]
[null,null,null,null,null,null,null,null,null,{"$f":" SUM(E912,#REF!, H912,I912,#REF!)","v":{"$error":"#REF!"}}]
[null,null,null,null,null,null,null,null,null,{"$f":" SUM(E913,#REF!, H913,I913,#REF!)","v":{"$error":"#REF!"}}]
[null,null,null,null,null,null,null,null,null,{"$f":" SUM(E914,#REF!, H914,I914,#REF!)","v":{"$error":"#REF!"}}]
[null,null,null,null,null,null,null,null,null,{"$f":" SUM(E915,#REF!, H915,I915,#REF!)","v":{"$error":"#REF!"}}]
[null,null,null,null,null,null,null,null,null,{"$f":" SUM(E916,#REF!, H916,I916,#REF!)","v":{"$error":"#REF!"}}]
[null,null,null,null,null,null,null,null,null,{"$f":" SUM(E917,#REF!, H917,I917,#REF!)","v":{"$error":"#REF!"}}]
[null,null,null,null,null,null,null,null,null,{"$f":" SUM(E918,#REF!, H918,I918,#REF!)","v":{"$error":"#REF!"}}]
[null,null,null,null,null,null,null,null,null,{"$f":" SUM(E919,#REF!, H919,I919,#REF!)","v":{"$error":"#REF!"}}]
[null,null,null,null,null,null,null,null,null,{"$f":" SUM(E920,#REF!, H920,I920,#REF!)","v":{"$error":"#REF!"}}]
[null,null,null,null,null,null,null,null,null,{"$f":" SUM(E921,#REF!, H921,I921,#REF!)","v":{"$error":"#REF!"}}]
[null,null,null,null,null,null,null,null,null,{"$f":" SUM(E922,#REF!, H922,I922,#REF!)","v":{"$error":"#REF!"}}]
[null,null,null,null,null,null,null,null,null,{"$f":" SUM(E923,#REF!, H923,I923,#REF!)","v":{"$error":"#REF!"}}]
[null,null,null,null,null,null,null,null,null,{"$f":" SUM(E924,#REF!, H924,I924,#REF!)","v":{"$error":"#REF!"}}]
[null,null,null,null,null,null,null,null,null,{"$f":" SUM(E925,#REF!, H925,I925,#REF!)","v":{"$error":"#REF!"}}]
[null,null,null,null,null,null,null,null,null,{"$f":" SUM(E926,#REF!, H926,I926,#REF!)","v":{"$error":"#REF!"}}]
[null,null,null,null,null,null,null,null,null,{"$f":" SUM(E927,#REF!, H927,I927,#REF!)","v":{"$error":"#REF!"}}]
[null,null,null,null,null,null,null,null,null,{"$f":" SUM(E928,#REF!, H928,I928,#REF!)","v":{"$error":"#REF!"}}]
[null,null,null,null,null,null,null,null,null,{"$f":" SUM(E929,#REF!, H929,I929,#REF!)","v":{"$error":"#REF!"}}]
[null,null,null,null,null,null,null,null,null,{"$f":" SUM(E930,#REF!, H930,I930,#REF!)","v":{"$error":"#REF!"}}]
[null,null,null,null,null,null,null,null,null,{"$f":" SUM(E931,#REF!, H931,I931,#REF!)","v":{"$error":"#REF!"}}]
[null,null,null,null,null,null,null,null,null,{"$f":" SUM(E932,#REF!, H932,I932,#REF!)","v":{"$error":"#REF!"}}]
[null,null,null,null,null,null,null,null,null,{"$f":" SUM(E933,#REF!, H933,I933,#REF!)","v":{"$error":"#REF!"}}]
[null,null,null,null,null,null,null,null,null,{"$f":" SUM(E934,#REF!, H934,I934,#REF!)","v":{"$error":"#REF!"}}]
[null,null,null,null,null,null,null,null,null,{"$f":" SUM(E935,#REF!, H935,I935,#REF!)","v":{"$error":"#REF!"}}]
[null,null,null,null,null,null,null,null,null,{"$f":" SUM(E936,#REF!, H936,I936,#REF!)","v":{"$error":"#REF!"}}]
[null,null,null,null,null,null,null,null,null,{"$f":" SUM(E937,#REF!, H937,I937,#REF!)","v":{"$error":"#REF!"}}]
[null,null,null,null,null,null,null,null,null,{"$f":" SUM(E938,#REF!, H938,I938,#REF!)","v":{"$error":"#REF!"}}]
[null,null,null,null,null,null,null,null,null,{"$f":" SUM(E939,#REF!, H939,I939,#REF!)","v":{"$error":"#REF!"}}]
[null,null,null,null,null,null,null,null,null,{"$f":" SUM(E940,#REF!, H940,I940,#REF!)","v":{"$error":"#REF!"}}]
[null,null,null,null,null,null,null,null,null,{"$f":" SUM(E941,#REF!, H941,I941,#REF!)","v":{"$error":"#REF!"}}]
[null,null,null,null,null,null,null,null,null,{"$f":" SUM(E942,#REF!, H942,I942,#REF!)","v":{"$error":"#REF!"}}]
[null,null,null,null,null,null,null,null,null,{"$f":" SUM(E943,#REF!, H943,I943,#REF!)","v":{"$error":"#REF!"}}]
[null,null,null,null,null,null,null,null,null,{"$f":" SUM(E944,#REF!, H944,I944,#REF!)","v":{"$error":"#REF!"}}]
[null,null,null,null,null,null,null,null,null,{"$f":" SUM(E945,#REF!, H945,I945,#REF!)","v":{"$error":"#REF!"}}]
[null,null,null,null,null,null,null,null,null,{"$f":" SUM(E946,#REF!, H946,I946,#REF!)","v":{"$error":"#REF!"}}]
[null,null,null,null,null,null,null,null,null,{"$f":" SUM(E947,#REF!, H947,I947,#REF!)","v":{"$error":"#REF!"}}]
[null,null,null,null,null,null,null,null,null,{"$f":" SUM(E948,#REF!, H948,I948,#REF!)","v":{"$error":"#REF!"}}]
[null,null,null,null,null,null,null,null,null,{"$f":" SUM(E949,#REF!, H949,I949,#REF!)","v":{"$error":"#REF!"}}]
[null,null,null,null,null,null,null,null,null,{"$f":" SUM(E950,#REF!, H950,I950,#REF!)","v":{"$error":"#REF!"}}]
[null,null,null,null,null,null,null,null,null,{"$f":" SUM(E951,#REF!, H951,I951,#REF!)","v":{"$error":"#REF!"}}]
[null,null,null,null,null,null,null,null,null,{"$f":" SUM(E952,#REF!, H952,I952,#REF!)","v":{"$error":"#REF!"}}]
[null,null,null,null,null,null,null,null,null,{"$f":" SUM(E953,#REF!, H953,I953,#REF!)","v":{"$error":"#REF!"}}]
[null,null,null,null,null,null,null,null,null,{"$f":" SUM(E954,#REF!, H954,I954,#REF!)","v":{"$error":"#REF!"}}]
[null,null,null,null,null,null,null,null,null,{"$f":" SUM(E955,#REF!, H955,I955,#REF!)","v":{"$error":"#REF!"}}]
[null,null,null,null,null,null,null,null,null,{"$f":" SUM(E956,#REF!, H956,I956,#REF!)","v":{"$error":"#REF!"}}]
[null,null,null,null,null,null,null,null,null,{"$f":" SUM(E957,#REF!, H957,I957,#REF!)","v":{"$error":"#REF!"}}]
[null,null,null,null,null,null,null,null,null,{"$f":" SUM(E958,#REF!, H958,I958,#REF!)","v":{"$error":"#REF!"}}]
[null,null,null,null,null,null,null,null,null,{"$f":" SUM(E959,#REF!, H959,I959,#REF!)","v":{"$error":"#REF!"}}]
[null,null,null,null,null,null,null,null,null,{"$f":" SUM(E960,#REF!, H960,I960,#REF!)","v":{"$error":"#REF!"}}]
[null,null,null,null,null,null,null,null,null,{"$f":" SUM(E961,#REF!, H961,I961,#REF!)","v":{"$error":"#REF!"}}]
[null,null,null,null,null,null,null,null,null,{"$f":" SUM(E962,#REF!, H962,I962,#REF!)","v":{"$error":"#REF!"}}]
[null,null,null,null,null,null,null,null,null,{"$f":" SUM(E963,#REF!, H963,I963,#REF!)","v":{"$error":"#REF!"}}]
[null,null,null,null,null,null,null,null,null,{"$f":" SUM(E964,#REF!, H964,I964,#REF!)","v":{"$error":"#REF!"}}]
[null,null,null,null,null,null,null,null,null,{"$f":" SUM(E965,#REF!, H965,I965,#REF!)","v":{"$error":"#REF!"}}]
[null,null,null,null,null,null,null,null,null,{"$f":" SUM(E966,#REF!, H966,I966,#REF!)","v":{"$error":"#REF!"}}]
[null,null,null,null,null,null,null,null,null,{"$f":" SUM(E967,#REF!, H967,I967,#REF!)","v":{"$error":"#REF!"}}]
[null,null,null,null,null,null,null,null,null,{"$f":" SUM(E968,#REF!, H968,I968,#REF!)","v":{"$error":"#REF!"}}]
[null,null,null,null,null,null,null,null,null,{"$f":" SUM(E969,#REF!, H969,I969,#REF!)","v":{"$error":"#REF!"}}]
[null,null,null,null,null,null,null,null,null,{"$f":" SUM(E970,#REF!, H970,I970,#REF!)","v":{"$error":"#REF!"}}]
[null,null,null,null,null,null,null,null,null,{"$f":" SUM(E971,#REF!, H971,I971,#REF!)","v":{"$error":"#REF!"}}]
[null,null,null,null,null,null,null,null,null,{"$f":" SUM(E972,#REF!, H972,I972,#REF!)","v":{"$error":"#REF!"}}]
[null,null,null,null,null,null,null,null,null,{"$f":" SUM(E973,#REF!, H973,I973,#REF!)","v":{"$error":"#REF!"}}]
[null,null,null,null,null,null,null,null,null,{"$f":" SUM(E974,#REF!, H974,I974,#REF!)","v":{"$error":"#REF!"}}]
[null,null,null,null,null,null,null,null,null,{"$f":" SUM(E975,#REF!, H975,I975,#REF!)","v":{"$error":"#REF!"}}]
[null,null,null,null,null,null,null,null,null,{"$f":" SUM(E976,#REF!, H976,I976,#REF!)","v":{"$error":"#REF!"}}]
[null,null,null,null,null,null,null,null,null,{"$f":" SUM(E977,#REF!, H977,I977,#REF!)","v":{"$error":"#REF!"}}]
[null,null,null,null,null,null,null,null,null,{"$f":" SUM(E978,#REF!, H978,I978,#REF!)","v":{"$error":"#REF!"}}]
[null,null,null,null,null,null,null,null,null,{"$f":" SUM(E979,#REF!, H979,I979,#REF!)","v":{"$error":"#REF!"}}]
[null,null,null,null,null,null,null,null,null,{"$f":" SUM(E980,#REF!, H980,I980,#REF!)","v":{"$error":"#REF!"}}]
[null,null,null,null,null,null,null,null,null,{"$f":" SUM(E981,#REF!, H981,I981,#REF!)","v":{"$error":"#REF!"}}]
[null,null,null,null,null,null,null,null,null,{"$f":" SUM(E982,#REF!, H982,I982,#REF!)","v":{"$error":"#REF!"}}]
[null,null,null,null,null,null,null,null,null,{"$f":" SUM(E983,#REF!, H983,I983,#REF!)","v":{"$error":"#REF!"}}]
[null,null,null,null,null,null,null,null,null,{"$f":" SUM(E984,#REF!, H984,I984,#REF!)","v":{"$error":"#REF!"}}]
[null,null,null,null,null,null,null,null,null,{"$f":" SUM(E985,#REF!, H985,I985,#REF!)","v":{"$error":"#REF!"}}]
[null,null,null,null,null,null,null,null,null,{"$f":" SUM(E986,#REF!, H986,I986,#REF!)","v":{"$error":"#REF!"}}]
[null,null,null,null,null,null,null,null,null,{"$f":" SUM(E987,#REF!, H987,I987,#REF!)","v":{"$error":"#REF!"}}]
[null,null,null,null,null,null,null,null,null,{"$f":" SUM(E988,#REF!, H988,I988,#REF!)","v":{"$error":"#REF!"}}]
[null,null,null,null,null,null,null,null,null,{"$f":" SUM(E989,#REF!, H989,I989,#REF!)","v":{"$error":"#REF!"}}]
[null,null,null,null,null,null,null,null,null,{"$f":" SUM(E990,#REF!, H990,I990,#REF!)","v":{"$error":"#REF!"}}]
[null,null,null,null,null,null,null,null,null,{"$f":" SUM(E991,#REF!, H991,I991,#REF!)","v":{"$error":"#REF!"}}]
[null,null,null,null,null,null,null,null,null,{"$f":" SUM(E992,#REF!, H992,I992,#REF!)","v":{"$error":"#REF!"}}]
[null,null,null,null,null,null,null,null,null,{"$f":" SUM(E993,#REF!, H993,I993,#REF!)","v":{"$error":"#REF!"}}]
[null,null,null,null,null,null,null,null,null,{"$f":" SUM(E994,#REF!, H994,I994,#REF!)","v":{"$error":"#REF!"}}]
[null,null,null,null,null,null,null,null,null,{"$f":" SUM(E995,#REF!, H995,I995,#REF!)","v":{"$error":"#REF!"}}]
[null,null,null,null,null,null,null,null,null,{"$f":" SUM(E996,#REF!, H996,I996,#REF!)","v":{"$error":"#REF!"}}]
[null,null,null,null,null,null,null,null,null,{"$f":" SUM(E997,#REF!, H997,I997,#REF!)","v":{"$error":"#REF!"}}]
[null,null,null,null,null,null,null,null,null,{"$f":" SUM(E998,#REF!, H998,I998,#REF!)","v":{"$error":"#REF!"}}]
[null,null,null,null,null,null,null,null,null,{"$f":" SUM(E999,#REF!, H999,I999,#REF!)","v":{"$error":"#REF!"}}]
[null,null,null,null,null,null,null,null,null,{"$f":" SUM(E1000,#REF!, H1000,I1000,#REF!)","v":{"$error":"#REF!"}}]

{"sheet":"F.  NTIA Interactions","index":5,"n_rows":45,"n_cols":2,"rows_kept":45,"cut":false,"hidden":false,"merged":[]}
[null,"Interaction required with NTIA to implement this Transition Plan"]
[1,"NTIA will need to work closely with the Federal frequency assignment incumbent to determine new frequency assignments in the alternate bands including the 1780-1850 MHz,  4 GHz and 7/8 GHz bands for point-to-point microwave."]
[]
[{"$f":"IF(B4=\"\",\"\",A3+1)","v":""}]
[""]
[""]
[""]
[""]
[""]
[""]
[""]
[{"$f":"IF(B9=\"\",\"\",A8+1)","v":""}]
[{"$f":"IF(B10=\"\",\"\",A9+1)","v":""}]
[""]
[""]
[""]
[""]
[""]
[""]
[""]
[""]
[""]
[""]
[""]
[""]
[""]
[""]
[""]
[""]
[""]
[""]
[""]
[""]
[""]
[""]
[""]
[""]
[""]
[""]
[""]
[""]
[""]
[""]
[""]
[""]

{"sheet":"G.  Excluded Information","index":6,"n_rows":4,"n_cols":14,"rows_kept":4,"cut":false,"hidden":false,"merged":[]}
["Serial Number","Description of Classified or Sensitive Information","Reason for Exclusion","Reference"]
[]
[null,null,null,null,null,null,null,null,null,null,null,null,null,"Classified"]
[null,null,null,null,null,null,null,null,null,null,null,null,null,"Sensitive"]

{"sheet":"H.  Factors","index":7,"n_rows":75,"n_cols":3,"rows_kept":75,"cut":false,"hidden":false,"merged":[]}
[null,"Factor","Impact on Fulfillment of Transition Plan"]
[1,"Weather complications","The relocation effort for all sites listed for vacating are subject to extreme weather conditions during winter months which can delay the deployment of new equipment installation including towers, antenna and RF microwave radio systems. "]
[2,"Frequency assignments in the 1755-1850 MHz band.","BPA will be seeking temporary frequency assignments in the 1780-1850 MHz band in order to move out of the 1755-1780 MHz spectrum. Thus, the need to receive the 1780-1850 MHz frequency assignments in a timely manner."]
[3,"Frequency assignments in the 4 GHz and 8 GHz band.","BPA will be seeking permanent frequency assignments in the 4 GHz and 8 GHz band in order to move out of the 1755-1780 MHz spectrum. Thus, the need to receive the 4 GHz and 8 GHz frequency assignments in a timely manner."]
[{"$f":"IF(B5=\"\",\"\",A4+1)","v":""}]
[""]
[""]
[""]
[""]
[""]
[""]
[""]
[""]
[""]
[""]
[""]
[""]
[""]
[""]
[""]
[""]
[""]
[""]
[""]
[""]
[""]
[""]
[""]
[""]
[""]
[""]
[""]
[""]
[""]
[""]
[""]
[""]
[""]
[""]
[""]
[""]
[""]
[""]
[""]
[""]
[""]
[""]
[""]
[""]
[""]
[""]
[""]
[""]
[""]
[""]
[""]
[""]
[""]
[""]
[""]
[""]
[""]
[""]
[""]
[""]
[""]
[""]
[{"$f":"IF(B68=\"\",\"\",A67+1)","v":""}]
[""]
[""]
[""]
[""]
[""]
[""]
[""]

{"sheet":"I.  Additional Information","index":8,"n_rows":17,"n_cols":10,"rows_kept":17,"cut":false,"hidden":false,"merged":[]}
["Serial Number","Center Freq./\nLower Band Limit (MHz)","Paired RX Serial Number","Paired RX Frequency","PairedRX \nState","Paired Service Area (RX) ","Alternate Frequency Assignment","Transition Timeline (Months)","Cost ($M)","Note"]
["DOE 786122","M1765","DOE 786123","M1825","WA",167,"N/A",30,0.1,"1,3&4"]
[]
["DOE 924929","M1765","DOE 786106","M1825","WA",167,"N/A",30,0.1,"1,3&4"]
[]
["DOE 945250","M1757.5","DOE 945249","M1817.5","OR",167,"N/A",30,0.1,"1,3&4"]
[]
["DOE 945254","M1767.5 ","DOE 945253","M1827.5","OR",150,"N/A",30,0.1,"1,3&4"]
[]
["DOE 955040","M1777.5","DOE 955039","M1837.5","WA",169,"4 GHz",30,2.4,"1 &2"]
[]
["DOE 955303","M1767.5","DOE 955305","M1827.5","CA",165,"7-8 GHz",30,2.4,"1 &2"]
[]
["DOE 984990","M1775","DOE 984991","M1835","WA",169,"N/A",30,0,"1,3&4"]
[]
[]
[1]

{"sheet":"Sheet1","index":9,"n_rows":0,"n_cols":0,"rows_kept":0,"cut":false,"hidden":false,"merged":[]}